bitfinex/quotes_ETHUSD_20220310
["timestamp","ask_amount","ask_price","bid_price","bid_amount"]
[1646938292413,0.00108363,2602.4,2602.3,2.04409552]
[1646938293742,0.00108363,2602.4,2602.3,0.91547294]
[1646938293943,0.00108363,2602.4,2602.1,0.91547294]
[1646938294147,0.00017197,2602.4,2602.2,0.00366336]
[1646938294347,0.00017197,2602.4,2602.2,0.9191363]
[1646938294647,0.00017197,2602.4,2602.3,0.91547294]
[1646938295447,0.00017197,2602.4,2602.2,0.91913632]
[1646938295649,0.00017197,2602.4,2602.3,0.91547294]
[1646938296451,0.00017197,2602.4,2602.3,4.94834331]
[1646938297294,0.00017197,2602.4,2602.3,5.33414331]
[1646938298092,0.00017197,2602.4,2602.3,1.83414331]
[1646938299700,0.00017197,2602.4,2602.3,5.33414331]
[1646938300097,0.00017197,2602.4,2602.3,1.83414331]
[1646938301248,0.00017197,2602.4,2602.3,5.33414331]
[1646938301847,0.00017197,2602.4,2602.3,1.83414331]
[1646938304196,0.00017197,2602.4,2602.3,1.37847294]
[1646938304795,0.00017197,2602.4,2602.3,0.91547294]
[1646938304998,0.00017197,2602.4,2602.2,0.00366362]
[1646938305196,0.00017197,2602.4,2602.2,0.91913656]
[1646938305397,0.00017197,2602.4,2602.3,0.91547294]
[1646938306296,0.65387532,2602.4,2602.3,0.91547294]
[1646938306697,0.65387532,2602.4,2602.3,0.91461032]
[1646938306898,0.65387532,2602.4,2602.2,0.00366362]
[1646938307098,0.65387532,2602.4,2601.9,0.91468879]
[1646938307298,0.65387532,2602.4,2601.9,2.14637901]
[1646938307500,0.65387532,2602.4,2602.2,0.00366362]
[1646938308252,0.65387532,2602.4,2602.0,0.91468879]
[1646938308650,0.65387532,2602.4,2602.2,0.00366364]
[1646938308850,0.00017197,2602.4,2602.2,0.00366364]
[1646938309255,0.05390394,2602.4,2602.2,0.00366364]
[1646938309456,0.65370335,2602.3,2602.0,0.91468879]
[1646938309758,0.65370335,2602.3,2602.2,0.00366364]
[1646938310761,0.65370335,2602.3,2602.0,0.91468879]
[1646938310958,0.65370335,2602.3,2602.1,0.00366367]
[1646938311158,0.65370335,2602.3,2602.1,0.91835246]
[1646938311358,0.65370335,2602.3,2602.1,0.00366367]
[1646938311994,0.65370335,2602.3,2601.9,0.91458734]
[1646938312195,0.65370335,2602.3,2602.1,0.00366369]
[1646938313196,0.65370335,2602.3,2601.9,0.91458734]
[1646938313399,0.65370335,2602.3,2602.1,0.00366369]
[1646938314400,0.65370335,2602.3,2602.0,1.84721592]
[1646938314600,0.65370335,2602.3,2602.1,0.91825103]
[1646938315451,0.65370335,2602.3,2602.2,0.91458734]
[1646938315852,0.65370335,2602.3,2602.1,0.00373239]
[1646938316651,0.65370335,2602.3,2602.0,0.91458734]
[1646938317050,0.65370335,2602.3,2602.1,0.00373239]
[1646938317951,0.65370335,2602.3,2602.0,0.91458734]
[1646938318153,0.65370335,2602.3,2602.1,0.00373239]
[1646938318558,0.05390394,2602.4,2602.1,0.00373239]
[1646938319096,0.652595,2602.3,2602.0,0.91458734]
[1646938319302,0.05390394,2602.4,2602.1,0.00377959]
[1646938319702,0.65278503,2602.3,2602.1,0.00377959]
[1646938319902,0.05390394,2602.4,2602.1,0.00377959]
[1646938320403,0.05390394,2602.4,2602.0,0.91458734]
[1646938320606,0.65301027,2602.3,2602.1,0.00377961]
[1646938320803,0.05390394,2602.4,2602.1,0.91836695]
[1646938321002,0.65301252,2602.2,2602.1,0.00377961]
[1646938321206,0.65301503,2602.2,2602.1,0.00377961]
[1646938321403,0.6532887,2602.3,2602.1,0.00377961]
[1646938321608,0.6532951,2602.2,2601.9,0.91458734]
[1646938321804,0.05390394,2602.4,2602.0,0.00377964]
[1646938322004,0.6533013,2602.3,2602.0,0.00377964]
[1646938322408,0.65333982,2602.2,2602.0,0.00377964]
[1646938322705,0.00017197,2602.4,2602.3,0.76591311]
[1646938322945,0.00017197,2602.4,2602.3,1.68050045]
[1646938324152,0.65338877,2602.6,2602.4,0.00066907]
[1646938324352,0.65338877,2602.5,2602.4,0.91525641]
[1646938324552,0.65338877,2603.0,2602.4,0.91525641]
[1646938324753,0.05329469,2602.9,2602.4,0.91525641]
[1646938324951,0.7625845,2602.9,2602.4,0.91525641]
[1646938325153,1.07758691,2602.5,2602.4,0.91525641]
[1646938325353,1.78311163,2602.5,2602.4,0.91525641]
[1646938326596,0.70552472,2602.5,2602.4,0.91525641]
[1646938326995,0.65338877,2602.5,2602.4,0.91525641]
[1646938327196,0.05362741,2602.7,2602.4,0.91525641]
[1646938327400,0.65338877,2602.6,2602.4,0.91525641]
[1646938327999,0.05050914,2602.5,2602.4,0.91525641]
[1646938328200,0.70389791,2602.5,2602.4,0.91525641]
[1646938329505,0.70389791,2602.5,2602.4,0.00066907]
[1646938330107,2.75088772,2602.5,2602.4,0.00066907]
[1646938330949,2.36508772,2602.5,2602.4,0.00066907]
[1646938331150,0.70389791,2602.5,2602.4,0.00066907]
[1646938332557,0.70389791,2602.5,2602.4,0.92334621]
[1646938333158,0.70389791,2602.5,2602.4,0.00066907]
[1646938335802,2.09898772,2602.5,2602.4,0.00066907]
[1646938336003,1.33918877,2602.5,2602.4,0.00066907]
[1646938337401,2.30048877,2602.5,2602.4,0.00066907]
[1646938337863,14.07048877,2602.5,2602.4,0.00066907]
[1646938338249,15.07048877,2602.5,2602.4,0.00066907]
[1646938340057,3.62480276,2602.5,2602.4,0.00066907]
[1646938342902,2.62480276,2602.5,2602.4,0.00066907]
[1646938343703,1.91468877,2602.5,2602.4,0.00066907]
[1646938343903,2.62489264,2602.5,2602.4,0.00066907]
[1646938344511,1.91468877,2602.5,2602.4,0.00066907]
[1646938345112,49.5,2602.4,2601.9,0.192]
[1646938345365,49.5,2602.4,2601.1,0.56364928]
[1646938345366,4.09616314,2602.2,2601.1,0.56364928]
[1646938345559,0.71046055,2601.8,2601.2,0.90051632]
[1646938346053,0.05751588,2601.6,2601.3,0.90051632]
[1646938346254,1.52547335,2601.5,2600.6,0.68999194]
[1646938346455,1.03175515,2600.9,2600.7,0.8895039]
[1646938346654,1.03175515,2600.9,2600.8,0.8895039]
[1646938347056,1.71433216,2600.9,2600.5,0.8895039]
[1646938347253,1.03175515,2600.9,2600.6,0.8895039]
[1646938347555,0.73289266,2600.8,2600.7,0.8895039]
[1646938347754,0.73289266,2600.8,2600.2,0.8895039]
[1646938347954,0.05014454,2600.8,2600.2,0.8895039]
[1646938348353,0.05014454,2600.8,2600.6,0.00391821]
[1646938349206,0.05014454,2600.8,2600.6,0.8895039]
[1646938349404,0.05014454,2600.8,2600.7,0.8895039]
[1646938350005,0.05014454,2600.8,2600.6,0.00391823]
[1646938350406,0.05014454,2600.8,2600.3,0.88716273]
[1646938350606,0.05014454,2600.8,2600.6,0.00391821]
[1646938350807,1.01211454,2600.8,2600.6,0.00391821]
[1646938351706,1.01211454,2600.8,2600.3,0.88716273]
[1646938351707,0.05014454,2600.8,2600.3,0.88716273]
[1646938351908,1.25921504,2601.3,2600.6,0.00371216]
[1646938352112,0.68075831,2601.2,2600.6,0.89087489]
[1646938352310,1.25921504,2601.3,2600.7,0.88716273]
[1646938352949,1.25921504,2601.3,2601.0,1.03214821]
[1646938353148,0.04971504,2601.3,2600.8,1.92685982]
[1646938353351,0.04632599,2601.5,2600.9,0.88716273]
[1646938353548,0.68054454,2601.4,2600.9,0.88716273]
[1646938354251,0.68054454,2601.4,2601.1,0.00357967]
[1646938355253,0.68054454,2601.4,2600.9,2.12276261]
[1646938355453,0.68054454,2601.4,2601.1,0.00378572]
[1646938356454,0.68054454,2601.4,2600.9,2.12276261]
[1646938356699,0.68054454,2601.4,2601.1,0.00379712]
[1646938357500,0.68054454,2601.4,2601.0,0.96161]
[1646938358000,0.68054454,2601.4,2601.1,0.00379712]
[1646938358800,0.68054454,2601.4,2601.0,0.96161]
[1646938359000,0.68054454,2601.4,2601.1,0.00379712]
[1646938360005,0.68054454,2601.4,2601.0,0.96161]
[1646938360207,0.68054454,2601.4,2601.1,0.00364206]
[1646938360647,0.68054454,2601.4,2601.0,0.91525206]
[1646938362351,0.68054454,2601.4,2600.9,1.16108261]
[1646938363747,0.68054454,2601.4,2601.0,0.00391806]
[1646938364508,0.68054454,2601.4,2601.0,0.076971]
[1646938364705,1.2432,2601.6,2601.0,0.076971]
[1646938364909,0.67395978,2601.5,2601.0,0.07305294]
[1646938365110,1.2432,2601.6,2601.0,0.07697105]
[1646938365405,1.2432,2601.6,2601.1,0.0710396]
[1646938366006,0.86993868,2601.4,2601.1,0.0710396]
[1646938366208,0.86993868,2601.4,2601.0,0.00391825]
[1646938366910,0.67402673,2601.3,2601.0,0.00391825]
[1646938367108,0.67402673,2601.3,2600.9,0.96169]
[1646938367515,1.63578673,2601.3,2601.0,0.00378952]
[1646938367710,0.96176,2601.3,2601.0,0.00378952]
[1646938368359,0.96176,2601.3,2600.9,0.96169]
[1646938368562,0.96176,2601.3,2601.0,0.00367193]
[1646938369664,0.96176,2601.3,2600.9,0.96169]
[1646938369665,0.6743997,2601.2,2600.9,0.96169]
[1646938369861,0.6743997,2601.2,2601.0,0.00367193]
[1646938370861,0.6743997,2601.2,2600.9,0.96169]
[1646938371061,0.6743997,2601.2,2601.0,0.00348154]
[1646938371904,0.96185,2601.1,2600.6,1.92349]
[1646938372104,0.96185,2601.1,2600.7,0.89201079]
[1646938372304,0.96185,2601.1,2601.0,0.00332737]
[1646938372706,1.63669615,2601.1,2601.0,0.00047143]
[1646938373103,0.67484615,2601.1,2600.8,0.96178]
[1646938373303,1.04398839,2601.4,2600.8,0.96178]
[1646938373504,0.67478386,2601.3,2600.8,0.96178]
[1646938373704,0.67478386,2601.3,2600.9,0.89239794]
[1646938373906,0.67478386,2601.2,2600.9,0.89239794]
[1646938374103,1.2432,2601.6,2600.9,0.89239794]
[1646938374305,0.67496495,2601.5,2600.9,0.89239794]
[1646938375007,0.67496495,2601.5,2601.0,0.98713467]
[1646938376456,1.63665495,2601.5,2601.0,0.98713467]
[1646938376658,0.67496495,2601.4,2601.0,0.98713467]
[1646938377057,0.67496495,2601.4,2601.0,1.94877467]
[1646938378560,0.67496495,2601.4,2601.0,0.96164]
[1646938382407,0.67496495,2601.4,2601.1,0.89415062]
[1646938382868,0.67496495,2601.4,2601.1,4.39415062]
[1646938383060,0.1913,2602.0,2601.3,0.08295413]
[1646938383061,0.71046055,2602.0,2601.3,0.08295413]
[1646938383254,0.71046055,2602.0,2601.4,0.89415062]
[1646938383255,0.67659436,2601.9,2601.4,0.89415062]
[1646938383457,0.67659436,2601.8,2601.4,0.89415062]
[1646938383655,0.67659436,2601.7,2601.4,0.89415062]
[1646938383855,0.67659436,2601.6,2601.4,0.89415062]
[1646938384055,0.67659436,2601.5,2601.4,1.78568056]
[1646938384259,0.67659436,2601.9,2601.4,1.78568056]
[1646938384460,0.67659436,2601.8,2601.4,0.89152994]
[1646938384661,0.67659436,2601.7,2601.5,0.89458984]
[1646938384861,0.67659436,2601.6,2601.5,0.89458984]
[1646938385465,0.67659436,2601.9,2601.5,0.89458984]
[1646938387606,1.38705491,2601.9,2601.5,0.89458984]
[1646938388209,1.68705491,2601.9,2601.5,0.89458984]
[1646938388412,1.68705491,2601.9,2601.3,1.9229]
[1646938388413,1.38705491,2601.8,2601.3,1.9229]
[1646938388607,0.4913,2601.9,2601.4,0.89586335]
[1646938388608,1.38705491,2601.7,2601.4,0.89586335]
[1646938388808,0.67659436,2601.6,2601.4,0.89586335]
[1646938389009,0.67659436,2601.5,2601.4,0.89586335]
[1646938389209,0.71046055,2601.8,2601.4,0.89586335]
[1646938389210,1.38705491,2601.8,2601.4,0.89586335]
[1646938389407,2.34863491,2601.8,2601.4,0.89586335]
[1646938389610,0.67659436,2601.7,2601.4,0.89586335]
[1646938389812,1.38705491,2601.7,2601.4,0.89586335]
[1646938390011,0.67659436,2601.6,2601.4,0.89586335]
[1646938390213,0.67659436,2601.5,2601.4,0.89586335]
[1646938390454,0.71046055,2601.7,2601.4,0.89586335]
[1646938390455,0.67659436,2601.7,2601.4,0.89586335]
[1646938390650,0.67659436,2601.6,2601.4,0.89586335]
[1646938390857,0.67659436,2601.5,2601.4,0.89586335]
[1646938391359,0.67659436,2601.6,2601.4,0.89586335]
[1646938391658,0.67659436,2601.5,2601.4,0.89586335]
[1646938392257,0.71046055,2602.0,2601.4,0.89586335]
[1646938392258,1.38705491,2602.0,2601.4,0.89586335]
[1646938392855,1.38705491,2602.0,2601.4,1.85726335]
[1646938393056,1.38705491,2602.0,2601.5,0.89586335]
[1646938394308,1.38705491,2602.0,2601.3,0.06935474]
[1646938394309,1.38705491,2601.9,2601.3,0.06935474]
[1646938394509,1.38705491,2601.9,2601.4,0.89548235]
[1646938394908,1.38705491,2601.8,2601.4,0.89548235]
[1646938395110,0.67659436,2601.7,2601.4,0.89548235]
[1646938395309,0.67659436,2601.6,2601.4,0.89548235]
[1646938395510,0.67659436,2601.5,2601.4,0.89548235]
[1646938396112,0.67659436,2601.7,2601.4,0.89548235]
[1646938396314,0.67659436,2601.6,2601.4,0.89548235]
[1646938396512,0.67659436,2601.5,2601.4,0.89548235]
[1646938396714,0.71046055,2601.9,2601.5,0.00148526]
[1646938397113,0.71046055,2601.9,2601.5,0.89696761]
[1646938398256,0.71046055,2601.9,2601.6,0.89553486]
[1646938398455,0.71046055,2601.9,2601.7,0.89552239]
[1646938398656,0.67853636,2601.8,2601.5,0.00148526]
[1646938398860,1.26163404,2602.1,2601.5,0.89695664]
[1646938398861,0.67853636,2601.7,2601.5,0.89695664]
[1646938399056,0.67853636,2601.6,2601.5,0.89695664]
[1646938399760,0.67853636,2601.6,2601.5,0.00148526]
[1646938399963,0.71046055,2601.9,2601.5,0.00148526]
[1646938401160,0.71046055,2601.9,2601.6,0.9615]
[1646938401362,1.38899691,2602.0,2601.7,0.89545418]
[1646938401807,1.38899691,2602.0,2601.7,0.89438561]
[1646938402210,0.71046055,2601.9,2601.6,1.9228]
[1646938403027,0.71046055,2601.9,2601.7,0.96144]
[1646938405658,0.71046055,2602.0,2601.7,0.96144]
[1646938407157,1.97209459,2602.1,2601.7,0.96144]
[1646938407359,0.75629459,2602.1,2601.7,0.96144]
[1646938407560,0.71046055,2602.0,2601.7,0.96144]
[1646938407961,0.75629459,2602.1,2601.7,0.96144]
[1646938409316,0.71046055,2602.0,2601.7,0.96144]
[1646938409710,0.75629459,2602.1,2601.7,0.96144]
[1646938413759,1.67199055,2602.0,2601.5,0.00148526]
[1646938414964,0.71046055,2601.9,2601.5,0.00148526]
[1646938415164,0.96169,2601.8,2601.5,0.00148526]
[1646938417212,1.00820033,2601.8,2601.5,0.00148526]
[1646938417809,0.71046055,2601.7,2601.5,0.00148526]
[1646938418009,0.96175,2601.6,2601.5,0.00148526]
[1646938420658,1.97867088,2601.8,2601.5,0.00148526]
[1646938420659,1.93216055,2601.8,2601.5,0.00148526]
[1646938421058,1.2217,2601.8,2601.5,0.00148526]
[1646938421856,0.67884429,2601.7,2601.5,0.00148526]
[1646938422057,0.67884429,2601.7,2601.6,0.96153]
[1646938422256,0.67884429,2601.7,2601.6,1.8578233]
[1646938423158,0.71046055,2601.9,2601.6,1.8578233]
[1646938423358,0.71046055,2601.9,2601.7,0.8962933]
[1646938424618,0.71046055,2601.8,2601.7,0.8962933]
[1646938424818,0.71046055,2601.9,2601.7,0.8962933]
[1646938425220,0.71046055,2601.9,2601.8,0.8962933]
[1646938425421,1.38930484,2601.9,2601.5,0.89777856]
[1646938426324,1.38930484,2601.9,2601.6,0.96147]
[1646938426522,0.67884429,2601.8,2601.7,0.8962933]
[1646938426722,1.38930484,2601.8,2601.7,0.8962933]
[1646938426922,0.67884429,2601.8,2601.7,0.8962933]
[1646938427423,0.71046055,2601.9,2601.7,0.8962933]
[1646938427956,0.71046055,2601.8,2601.7,0.8962933]
[1646938428157,0.71046055,2601.8,2601.5,0.89777856]
[1646938428857,1.38930484,2601.8,2601.5,0.89777856]
[1646938429461,0.67884429,2601.7,2601.5,0.89777856]
[1646938429664,0.67884429,2601.6,2601.5,0.89657521]
[1646938430162,0.71046055,2601.7,2601.5,0.89657521]
[1646938434013,0.71046055,2601.6,2601.5,0.89657521]
[1646938434217,1.67213055,2601.6,2601.5,0.89657521]
[1646938434417,1.64051429,2601.6,2601.5,0.00028191]
[1646938434617,2.35243967,2601.6,2601.5,0.00028191]
[1646938435217,1.64051429,2601.6,2601.5,0.00028191]
[1646938440618,1.39036817,2601.6,2601.5,0.00028191]
[1646938441016,1.39036817,2601.7,2601.5,0.00028191]
[1646938441217,0.67884429,2601.6,2601.5,0.00028191]
[1646938441915,1.39036817,2601.8,2601.5,0.89689844]
[1646938442115,0.67884429,2601.7,2601.5,0.89689844]
[1646938442315,0.67884429,2601.6,2601.5,0.89689844]
[1646938442965,1.39036817,2601.8,2601.6,1.92274]
[1646938443168,0.67887781,2601.7,2601.6,1.92274]
[1646938443369,0.67887781,2601.7,2601.6,2.81892013]
[1646938443567,0.71152388,2601.8,2601.6,2.81892013]
[1646938443767,0.71152388,2601.8,2601.6,1.92274]
[1646938445769,0.71152388,2601.8,2601.5,0.00028191]
[1646938445971,0.71152388,2601.8,2601.5,0.89642841]
[1646938446611,1.39040169,2601.8,2601.5,0.89642841]
[1646938446811,1.39040169,2601.8,2601.6,0.8961465]
[1646938446812,0.67887781,2601.7,2601.6,0.8961465]
[1646938447011,0.71152388,2601.8,2601.5,0.00028191]
[1646938447614,2.02624781,2601.9,2601.5,0.89642841]
[1646938447615,1.44482594,2601.7,2601.5,0.89642841]
[1646938447815,1.39040169,2601.6,2601.5,0.00028191]
[1646938448816,1.43199409,2601.6,2601.5,0.00028191]
[1646938449417,1.43709789,2601.6,2601.5,0.00028191]
[1646938449618,1.43883529,2601.6,2601.5,0.00028191]
[1646938450219,0.72731141,2601.6,2601.5,0.00028191]
[1646938451756,0.72731141,2601.6,2601.5,3.50028191]
[1646938451958,0.72731141,2601.6,2601.5,0.89665389]
[1646938452363,0.72731141,2601.6,2601.5,0.07997317]
[1646938452559,0.72731141,2601.6,2601.5,0.97634515]
[1646938454821,1.69814756,2601.6,2601.5,0.97634515]
[1646938455019,1.69814756,2601.6,2601.5,0.89665389]
[1646938455320,1.69814756,2601.6,2601.5,0.00028191]
[1646938455526,0.00063899,2601.5,2601.4,0.90119582]
[1646938455820,0.00063899,2601.5,2601.2,0.90119582]
[1646938455821,2.35269802,2601.5,2601.2,0.90119582]
[1646938456022,0.67887781,2601.4,2601.2,0.90119582]
[1646938456221,0.67887781,2601.4,2601.3,0.90119582]
[1646938456427,0.67887781,2601.4,2601.0,0.90119582]
[1646938456624,0.72220761,2601.4,2601.1,0.90119582]
[1646938456923,0.67887781,2601.3,2601.2,0.90119582]
[1646938457124,0.67887781,2601.3,2601.0,0.90119582]
[1646938457526,0.67887781,2601.2,2601.0,0.90119582]
[1646938458660,0.72220761,2601.2,2601.0,0.90119582]
[1646938458862,0.67887781,2601.1,2601.0,0.90119582]
[1646938459065,0.6748911,2601.1,2601.0,0.90119582]
[1646938459263,0.0433298,2601.2,2601.0,4.40119582]
[1646938459463,0.0433298,2601.2,2601.1,4.40119582]
[1646938459965,0.00063899,2601.5,2601.4,0.00633646]
[1646938460363,0.00063899,2601.5,2601.4,0.90753228]
[1646938460563,0.67547944,2601.5,2601.4,0.90753228]
[1646938468668,0.71442544,2601.5,2601.4,0.90753228]
[1646938470619,1.42585666,2601.5,2601.4,0.90753228]
[1646938472023,0.71442544,2601.5,2601.4,0.90753228]
[1646938473962,0.71442544,2601.5,2601.4,4.40753228]
[1646938474165,0.71442544,2601.5,2601.4,0.90753228]
[1646938474767,0.71442544,2601.5,2601.4,4.40753228]
[1646938474965,0.71442544,2601.5,2601.4,0.90753228]
[1646938480223,0.71442544,2601.5,2601.4,0.90632991]
[1646938480470,0.71442544,2601.5,2601.4,0.00633646]
[1646938480672,0.71442544,2601.5,2601.4,0.90634327]
[1646938480870,0.71442544,2601.5,2601.4,0.00633646]
[1646938481073,0.71442544,2601.5,2601.4,0.90640225]
[1646938481273,0.71442544,2601.5,2601.4,0.00633646]
[1646938481770,0.71442544,2601.5,2601.4,0.90640291]
[1646938484110,0.71442544,2601.5,2601.4,0.9059486]
[1646938484316,0.71442544,2601.5,2601.4,0.00633646]
[1646938484819,0.71442544,2601.5,2601.4,0.90598713]
[1646938485017,0.71442544,2601.5,2601.4,0.90598664]
[1646938485217,0.71442544,2601.5,2601.4,0.90596995]
[1646938485419,0.71442544,2601.5,2601.4,0.00633646]
[1646938485818,0.71442544,2601.5,2601.4,0.90611445]
[1646938486018,0.71442544,2601.5,2601.4,0.9061439]
[1646938490171,4.92585666,2601.5,2601.4,0.00633646]
[1646938490372,5.31165666,2601.5,2601.4,0.00633646]
[1646938490571,4.60022544,2601.5,2601.4,0.00633646]
[1646938502619,5.54594518,2601.5,2601.4,0.00474251]
[1646938502884,5.84594518,2601.5,2601.4,0.00474251]
[1646938503874,4.90022544,2601.5,2601.4,0.00474251]
[1646938504275,5.84594518,2601.5,2601.4,0.00474251]
[1646938506614,6.84594518,2601.5,2601.4,0.00474251]
[1646938507016,19.61594518,2601.5,2601.4,0.00474251]
[1646938508620,19.80724518,2601.5,2601.4,0.00474251]
[1646938508819,19.95734054,2601.5,2601.4,0.00474251]
[1646938509021,19.80884718,2601.5,2601.4,0.00474251]
[1646938509221,20.90466228,2601.5,2601.4,0.00474251]
[1646938509421,19.95734054,2601.5,2601.4,0.00474251]
[1646938510022,21.37586645,2601.5,2601.4,0.00474251]
[1646938510663,19.95734054,2601.5,2601.4,0.00474251]
[1646938510868,19.76604054,2601.5,2601.4,0.00474251]
[1646938511264,7.80154054,2601.5,2601.4,0.00474251]
[1646938511464,3.01442544,2601.5,2601.4,0.00474251]
[1646938511665,6.51442544,2601.5,2601.4,0.00474251]
[1646938511863,3.01442544,2601.5,2601.4,0.00474251]
[1646938512663,2.01442544,2601.5,2601.4,0.00474251]
[1646938512862,3.06597837,2601.5,2601.4,0.00474251]
[1646938513067,2.06597837,2601.5,2601.4,0.00474251]
[1646938513268,3.06597837,2601.5,2601.4,0.00474251]
[1646938513470,2.06597837,2601.5,2601.4,0.00474251]
[1646938513666,6.56597837,2601.5,2601.4,0.00474251]
[1646938515522,3.06597837,2601.5,2601.4,0.00474251]
[1646938515721,1.76597837,2601.5,2601.4,0.00474251]
[1646938515922,1.47598086,2601.5,2601.4,0.00474251]
[1646938516325,0.76597837,2601.5,2601.4,0.00474251]
[1646938516721,0.71442544,2601.5,2601.4,0.00474251]
[1646938517122,1.42442793,2601.5,2601.4,0.00474251]
[1646938517321,0.71442544,2601.5,2601.4,0.00474251]
[1646938518270,0.71442544,2601.5,2601.4,0.08557969]
[1646938520677,0.71442544,2601.5,2601.4,1.36927987]
[1646938521915,0.71442544,2601.5,2601.4,1.56147987]
[1646938522326,0.71442544,2601.5,2601.4,1.36927987]
[1646938525569,0.71442544,2601.5,2601.4,0.98347987]
[1646938525772,0.71442544,2601.5,2601.4,0.08557969]
[1646938525971,0.71442544,2601.5,2601.4,0.00474251]
[1646938526776,0.71442544,2601.5,2601.4,0.00381225]
[1646938531326,2.34777378,2601.5,2601.4,0.00381225]
[1646938531523,0.71442544,2601.5,2601.4,0.00381225]
[1646938534170,0.03958499,2601.5,2601.4,0.00381225]
[1646938534374,0.74978949,2601.5,2601.4,0.00381225]
[1646938534570,1.423686,2601.5,2601.4,0.00381225]
[1646938534774,2.771206,2601.5,2601.4,0.00381225]
[1646938534971,2.29735691,2601.5,2601.4,0.00381225]
[1646938535371,3.24425817,2601.5,2601.4,0.00381225]
[1646938536924,1.91155691,2601.5,2601.4,0.00381225]
[1646938537121,0.75853691,2601.5,2601.4,0.00381225]
[1646938537322,1.42380679,2601.5,2601.4,0.00381225]
[1646938542569,0.7134815,2601.5,2601.4,0.00381225]
[1646938546530,0.3858,2601.3,2600.9,0.00336771]
[1646938546727,1.14562216,2601.1,2600.9,0.00336771]
[1646938546926,1.05969651,2601.0,2600.9,0.00336771]
[1646938547332,1.80900984,2601.0,2600.9,0.00336771]
[1646938547526,1.18031779,2600.6,2600.2,0.1922]
[1646938547726,0.67389651,2600.5,2600.3,0.89881677]
[1646938548370,0.69336571,2600.5,2600.3,0.89881677]
[1646938548571,0.67389651,2600.4,2600.3,0.89881677]
[1646938548971,0.67389651,2600.4,2600.3,0.90218462]
[1646938549470,0.69336571,2600.4,2600.3,0.90218462]
[1646938549876,0.69336571,2600.4,2600.3,0.89881677]
[1646938550474,1.03447076,2600.8,2600.5,0.84167146]
[1646938550674,0.68274801,2600.7,2600.6,0.89881677]
[1646938552019,0.68274801,2600.8,2600.6,0.89881677]
[1646938552223,0.68274801,2600.8,2600.5,0.84167146]
[1646938552426,0.68274801,2600.8,2600.6,0.88971249]
[1646938553723,0.68274801,2600.8,2600.6,0.89308033]
[1646938554724,0.68274801,2600.8,2600.6,0.88971249]
[1646938554928,0.68274801,2600.8,2600.6,0.00118335]
[1646938555777,0.68274801,2600.8,2600.6,0.89081803]
[1646938556177,0.68274801,2600.8,2600.6,0.89200137]
[1646938557276,0.68274801,2600.8,2600.6,0.89081803]
[1646938557480,0.68274801,2600.8,2600.6,0.89449927]
[1646938558276,0.68274801,2600.8,2600.6,0.89081803]
[1646938558480,0.68274801,2600.8,2600.6,0.89449927]
[1646938558678,0.73263085,2600.8,2600.6,0.89449927]
[1646938558879,0.68274801,2600.7,2600.6,0.89449927]
[1646938559520,0.68274801,2600.7,2600.6,0.89081803]
[1646938560722,0.68274801,2600.8,2600.6,0.89081803]
[1646938561723,0.68173698,2600.8,2600.6,0.89081803]
[1646938562124,0.68173698,2600.8,2600.6,0.89448869]
[1646938563168,0.68173698,2600.8,2600.6,1.85250363]
[1646938563368,0.68173698,2600.8,2600.6,0.96535781]
[1646938565077,0.68173698,2600.8,2600.6,0.00367221]
[1646938565476,0.68173698,2600.8,2600.5,0.84167146]
[1646938565875,0.68173698,2600.8,2600.6,0.00367221]
[1646938566818,0.68173698,2600.8,2600.5,0.84167146]
[1646938567018,0.68173698,2600.8,2600.6,0.00367198]
[1646938567825,0.68173698,2600.8,2600.5,0.84167146]
[1646938568122,0.68173698,2600.8,2600.6,0.00367198]
[1646938569120,0.68173698,2600.8,2600.5,0.84167146]
[1646938569323,0.68173698,2600.8,2600.6,0.96537188]
[1646938569524,0.68173698,2600.8,2600.7,0.18653371]
[1646938570566,0.68173698,2600.8,2600.7,0.11271446]
[1646938570965,0.68173698,2600.8,2600.7,0.01572513]
[1646938572569,0.72982893,2600.9,2600.7,0.01572513]
[1646938572779,0.77919155,2600.9,2600.7,0.01572513]
[1646938572969,0.72982893,2600.9,2600.7,0.01572513]
[1646938573170,0.04848023,2600.8,2600.7,0.01572513]
[1646938574220,0.04848023,2600.8,2600.7,0.0677552]
[1646938574820,0.75884756,2600.8,2600.7,0.0677552]
[1646938577225,41.05095303,2600.7,2600.0,40.08493025]
[1646938577428,0.71108894,2600.3,2600.0,14.35665812]
[1646938577625,8.79555308,2600.6,2600.0,14.35665812]
[1646938577626,0.76367119,2600.2,2600.0,14.35665812]
[1646938577866,0.75979614,2600.1,2600.0,14.35665812]
[1646938578069,0.3487072,2600.1,2600.0,14.35665812]
[1646938578265,0.4345072,2600.1,2600.0,14.35665812]
[1646938578765,3.37038614,2600.1,2600.0,14.35665812]
[1646938578966,2.61059,2600.1,2600.0,14.35665812]
[1646938579670,3.6661569,2600.1,2600.0,14.35665812]
[1646938579971,3.2803569,2600.1,2600.0,14.35665812]
[1646938580577,1.3555669,2600.1,2600.0,14.35665812]
[1646938581624,2.06867365,2600.1,2600.0,14.35665812]
[1646938585366,2.08513561,2600.1,2600.0,14.41094664]
[1646938589223,2.08442378,2600.1,2600.0,14.41094664]
[1646938591125,2.08442378,2600.1,2600.0,12.71973309]
[1646938592126,0.72885688,2600.1,2600.0,12.71973309]
[1646938594773,0.72885688,2600.1,2600.0,12.74203821]
[1646938599529,0.74164468,2600.1,2600.0,12.71973309]
[1646938600868,1.61914069,2600.1,2600.0,12.71973309]
[1646938606430,2.70734069,2600.1,2600.0,12.71973309]
[1646938606632,3.41842963,2600.1,2600.0,12.71973309]
[1646938607429,2.70734069,2600.1,2600.0,12.71973309]
[1646938607872,1.61914069,2600.1,2600.0,12.71973309]
[1646938610374,2.56604195,2600.1,2600.0,12.71973309]
[1646938611076,2.56604195,2600.1,2600.0,11.02839639]
[1646938611077,1.61914069,2600.1,2600.0,11.02839639]
[1646938611473,2.56604195,2600.1,2600.0,11.02839639]
[1646938612219,2.56604195,2600.1,2600.0,10.77839639]
[1646938612620,3.86604195,2600.1,2600.0,10.77839639]
[1646938613224,2.91914069,2600.1,2600.0,10.77839639]
[1646938613425,3.91914069,2600.1,2600.0,10.77839639]
[1646938613626,2.91914069,2600.1,2600.0,10.77839639]
[1646938613825,3.91914069,2600.1,2600.0,10.77839639]
[1646938614024,2.91914069,2600.1,2600.0,10.77839639]
[1646938614227,61.5036,2599.9,2599.4,0.3844]
[1646938614431,1.67187314,2599.5,2599.4,0.3844]
[1646938614626,3.42862189,2599.5,2599.4,0.3844]
[1646938614825,48.3858,2599.4,2598.9,2.88198853]
[1646938615028,48.3858,2599.4,2598.2,2.849]
[1646938615029,12.47949398,2599.2,2598.5,0.0011692]
[1646938615246,12.47949398,2599.2,2598.3,2.4729]
[1646938615247,2.59297336,2599.1,2598.4,0.92723025]
[1646938615482,0.96286,2598.8,2598.4,0.92723025]
[1646938615683,0.71239492,2598.7,2598.4,0.92723025]
[1646938615882,0.71239492,2598.6,2598.4,0.92723025]
[1646938616084,0.71239492,2598.5,2598.2,0.08306921]